bitfinex-derivatives/quotes_SOLF0:USTF0_20251024
["timestamp","ask_amount","ask_price","bid_price","bid_amount"]
[1761335690732,3.33915558,193.24,193.19,2.81]
[1761335690933,5.47915558,193.24,193.19,2.81]
[1761335691132,3.33915558,193.24,193.19,2.81]
[1761335692026,5.47915558,193.27,193.19,2.81]
[1761335692336,2.14,193.26,193.19,2.81]
[1761335693334,4.59168649,193.31,193.19,7.468]
[1761335693529,6.73168649,193.3,193.2,2.81]
[1761335693733,2.14,193.3,193.2,2.81]
[1761335693936,6.73168649,193.3,193.2,2.81]
[1761335694243,2.14,193.3,193.2,2.81]
[1761335694434,6.73168649,193.3,193.2,2.81]
[1761335694635,2.14,193.3,193.2,2.81]
[1761335694831,6.73168649,193.3,193.2,2.81]
[1761335695038,2.14,193.3,193.22,2.81]
[1761335695939,2.14,193.3,193.23,2.81]
[1761335697637,4.59168649,193.31,193.26,2.83]
[1761335697829,4.59168649,193.34,193.27,2.83]
[1761335698034,2.14,193.37,193.27,2.83]
[1761335698035,2.14,193.35,193.27,2.83]
[1761335698236,2.14,193.33,193.27,2.83]
[1761335700238,2.14,193.33,193.19,4.74761768]
[1761335700438,2.14,193.3,193.19,2.83]
[1761335700637,2.14,193.29,193.19,2.83]
[1761335701238,2.14,193.29,193.2,2.83]
[1761335702041,2.14,193.29,193.21,2.83]
[1761335702744,2.14,193.29,193.22,2.83]
[1761335703544,2.14,193.29,193.19,7.4881]
[1761335703843,2.14,193.29,193.2,2.83]
[1761335705644,2.14,193.27,193.18,177.75084165]
[1761335706636,2.14,193.27,193.19,2.83]
[1761335708043,2.14,193.27,193.19,7.488]
[1761335710144,2.14,193.27,193.19,2.83]
[1761335711245,2.14,193.26,193.19,2.83]
[1761335715444,6.73168649,193.26,193.19,2.83]
[1761335715649,2.14,193.26,193.19,2.83]
[1761335716141,4.59168649,193.25,193.19,2.83]
[1761335717153,4.59168649,193.24,193.19,2.83]
[1761335717453,4.59168649,193.25,193.19,2.83]
[1761335717753,4.59168649,193.24,193.19,2.83]
[1761335717955,4.59168649,193.25,193.19,2.83]
[1761335718264,6.73168649,193.24,193.19,2.83]
[1761335718463,4.59168649,193.23,193.19,2.83]
[1761335718943,6.73168649,193.22,193.19,2.83]
[1761335719140,2.14,193.22,193.19,2.83]
[1761335719341,4.59168649,193.21,193.18,177.75084165]
[1761335719541,2.14,193.2,193.18,177.75084165]
[1761335720553,2.14,193.23,193.18,177.75084165]
[1761335720747,6.73168649,193.22,193.18,177.75084165]
[1761335720949,4.59168649,193.21,193.18,177.75084165]
[1761335721253,4.59168649,193.2,193.18,177.75084165]
[1761335721553,2.14,193.22,193.18,180.56084165]
[1761335721751,4.62947152,193.21,193.18,180.56084165]
[1761335721954,2.14,193.25,193.19,2.81]
[1761335722156,2.14,193.23,193.19,2.81]
[1761335722352,4.6293387,193.22,193.19,2.81]
[1761335722548,4.6293387,193.21,193.19,2.81]
[1761335722849,4.6310022,193.25,193.21,2.81]
[1761335723055,4.6310022,193.24,193.22,4.95221207]
[1761335723254,4.6310022,193.23,193.22,4.95221207]
[1761335724345,4.6310022,193.23,193.22,2.14221207]
[1761335727652,6.7710022,193.23,193.2,2.14221207]
[1761335727854,2.14,193.21,193.18,179.89305372]
[1761335728055,6.75006486,193.2,193.18,179.89305372]
[1761335728358,2.14,193.2,193.18,179.89305372]
[1761335728855,4.61334684,193.19,193.18,179.89305372]
[1761335729162,4.61334684,193.19,193.18,177.75084165]
[1761335729358,4.61334684,193.19,193.16,2.14221207]
[1761335729562,6.75334684,193.18,193.16,2.14221207]
[1761335729865,2.14,193.24,193.16,2.14221207]
[1761335730057,2.14,193.22,193.16,2.14221207]
[1761335730256,2.14,193.2,193.16,4.95221207]
[1761335730461,4.61670897,193.19,193.16,4.95221207]
[1761335730656,4.61670897,193.18,193.16,4.95221207]
[1761335730858,2.14,193.2,193.14,2.14221207]
[1761335731154,2.14,193.17,193.13,4.95221207]
[1761335731359,4.62046234,193.16,193.13,4.95221207]
[1761335731657,4.62046234,193.15,193.13,4.95221207]
[1761335731858,4.62046234,193.14,193.13,4.95221207]
[1761335732055,4.62046234,193.14,193.11,2.14221207]
[1761335732254,2.14221207,193.21,193.11,4.95221207]
[1761335732555,2.14,193.18,193.11,4.95221207]
[1761335732757,6.76242138,193.17,193.11,4.95221207]
[1761335733060,2.14221207,193.19,193.11,4.95221207]
[1761335733061,6.76242138,193.16,193.11,4.95221207]
[1761335733263,4.62242138,193.15,193.11,4.95221207]
[1761335733457,4.62242138,193.14,193.11,4.95221207]
[1761335733654,2.14,193.16,193.11,4.95221207]
[1761335733860,6.76254933,193.15,193.11,4.95221207]
[1761335734057,4.62254933,193.14,193.11,4.95221207]
[1761335734364,2.14,193.15,193.11,4.95221207]
[1761335734558,4.62203986,193.14,193.11,4.95221207]
[1761335734753,2.14,193.15,193.11,4.95221207]
[1761335734959,4.62204038,193.14,193.11,2.81]
[1761335735158,2.14,193.15,193.11,2.81]
[1761335736266,2.14,193.15,193.1,4.95221207]
[1761335736467,2.14,193.15,193.11,2.81]
[1761335736864,6.76018935,193.15,193.11,2.81]
[1761335737066,2.14,193.15,193.11,2.81]
[1761335737268,6.76018935,193.17,193.13,2.81]
[1761335737566,4.62018935,193.16,193.13,2.81]
[1761335737760,4.62018935,193.15,193.13,2.81]
[1761335737958,4.62018935,193.16,193.13,2.81]
[1761335738156,2.14,193.17,193.13,2.81]
[1761335738362,4.61893105,193.16,193.13,2.81]
[1761335738557,2.14,193.17,193.13,2.81]
[1761335738762,4.61827935,193.16,193.13,2.81]
[1761335738961,2.14,193.17,193.13,2.81]
[1761335739162,4.61827883,193.16,193.13,2.81]
[1761335739363,4.61785797,193.16,193.13,2.81]
[1761335739769,6.76785797,193.17,193.13,2.81]
[1761335739969,4.61785797,193.16,193.13,2.81]
[1761335740267,4.61755968,193.16,193.13,2.81]
[1761335743171,2.15,193.17,193.13,2.81]
[1761335743367,4.61863669,193.16,193.13,2.81]
[1761335743572,2.15,193.17,193.13,2.81]
[1761335743769,4.61833875,193.16,193.13,2.81]
[1761335743972,2.15,193.17,193.13,2.81]
[1761335744273,4.61987162,193.16,193.13,2.81]
[1761335744471,4.61987162,193.15,193.13,2.81]
[1761335744666,4.61987162,193.16,193.13,2.81]
[1761335744866,4.61987162,193.15,193.13,2.81]
[1761335745066,4.61987162,193.16,193.13,2.81]
[1761335745270,4.61987162,193.15,193.13,2.81]
[1761335745470,6.76987162,193.16,193.13,2.81]
[1761335745672,4.61987162,193.15,193.13,2.81]
[1761335745872,6.76987162,193.15,193.12,2.14221207]
[1761335746078,2.15,193.15,193.12,4.75221207]
[1761335747176,6.76987162,193.15,193.12,4.75221207]
[1761335747377,2.15,193.15,193.12,4.75221207]
[1761335751580,2.15,193.18,193.12,4.75221207]
[1761335751789,6.76984947,193.17,193.13,2.61]
[1761335752082,4.61984947,193.16,193.15,2.61]
[1761335753981,4.61984947,193.16,193.15,4.75221207]
[1761335754884,2.15,193.19,193.15,4.75221207]
[1761335755182,6.76984947,193.18,193.15,4.75221207]
[1761335755376,4.61984947,193.17,193.15,4.75221207]
[1761335755577,4.61984947,193.16,193.15,4.75221207]
[1761335755781,4.61984947,193.17,193.15,4.75221207]
[1761335755981,4.61984947,193.16,193.15,4.75221207]
[1761335756280,4.61984947,193.17,193.15,4.75221207]
[1761335756480,4.61984947,193.16,193.15,4.75221207]
[1761335756677,4.61984947,193.17,193.15,4.75221207]
[1761335756882,4.61984947,193.16,193.15,4.75221207]
[1761335757083,4.61984947,193.17,193.15,4.75221207]
[1761335757389,4.61984947,193.16,193.15,4.75221207]
[1761335757580,4.61984947,193.17,193.15,4.75221207]
[1761335757775,4.61984947,193.16,193.15,4.75221207]
[1761335757986,6.76984947,193.21,193.16,2.59]
[1761335758175,4.61984947,193.2,193.18,2.14221207]
[1761335758381,4.61984947,193.19,193.18,2.14221207]
[1761335758576,4.61984947,193.19,193.18,4.73221207]
[1761335758782,6.76984947,193.19,193.16,4.73221207]
[1761335759085,4.61984947,193.18,193.16,4.73221207]
[1761335759284,4.61984947,193.17,193.16,4.73221207]
[1761335759883,2.15,193.16,193.14,4.73221207]
[1761335760081,4.59516091,193.15,193.14,4.73221207]
[1761335760385,2.15,193.17,193.14,4.73221207]
[1761335760587,4.59516091,193.16,193.14,4.73221207]
[1761335760789,4.59516703,193.18,193.15,2.59]
[1761335760977,4.59516703,193.17,193.15,2.59]
[1761335761285,4.59569482,193.16,193.15,2.59]
[1761335761479,4.59569482,193.17,193.15,2.59]
[1761335761680,2.15,193.18,193.15,2.59]
[1761335761886,4.59548818,193.17,193.15,2.59]
[1761335762086,2.15,193.18,193.15,2.59]
[1761335762283,4.59572782,193.17,193.15,2.59]
[1761335762475,4.59572782,193.16,193.14,2.14221207]
[1761335762681,2.15,193.19,193.14,4.73221207]
[1761335762877,6.74660429,193.18,193.14,4.73221207]
[1761335763081,30.66221207,193.24,193.14,4.73221207]
[1761335763082,4.59660429,193.17,193.14,4.73221207]
[1761335763282,4.59660429,193.16,193.14,4.73221207]
[1761335763581,2.15,193.17,193.14,4.73221207]
[1761335763889,4.59734645,193.16,193.14,4.73221207]
[1761335764090,2.15,193.17,193.14,4.73221207]
[1761335764291,4.59735932,193.16,193.14,4.73221207]
[1761335764490,2.15,193.17,193.14,4.73221207]
[1761335764691,4.59758414,193.16,193.14,4.73221207]
[1761335764993,2.15,193.17,193.14,4.73221207]
[1761335765294,4.59779088,193.16,193.14,4.73221207]
[1761335765485,2.15,193.17,193.14,4.73221207]
[1761335765680,4.59783696,193.16,193.14,4.73221207]
[1761335765884,2.15,193.17,193.14,4.73221207]
[1761335766081,4.59783696,193.16,193.14,4.73221207]
[1761335766286,2.15,193.17,193.14,4.73221207]
[1761335766486,4.59812156,193.16,193.14,4.73221207]
[1761335766687,2.15,193.17,193.14,4.73221207]
[1761335766888,4.59812156,193.16,193.14,4.73221207]
[1761335767092,2.15,193.17,193.14,4.73221207]
[1761335767387,4.59833548,193.16,193.14,4.73221207]
[1761335767586,2.15,193.17,193.14,4.73221207]
[1761335767788,4.59865937,193.16,193.14,4.73221207]
[1761335767982,2.15,193.17,193.14,4.73221207]
[1761335768192,4.59865937,193.16,193.14,4.73221207]
[1761335768398,2.15,193.17,193.15,2.66]
[1761335768585,4.60007917,193.16,193.15,2.66]
[1761335772404,4.60007917,193.16,193.15,4.80221207]
[1761335777511,6.75007917,193.16,193.14,4.79484648]
[1761335777713,2.14221207,193.22,193.12,188.91736001]
[1761335777714,2.15,193.14,193.12,188.91736001]
[1761335777915,4.60007917,193.13,193.12,188.91736001]
[1761335778115,4.60007917,193.13,193.12,184.12251353]
[1761335778613,4.60007917,193.13,193.11,9.59705855]
[1761335778815,4.60007917,193.12,193.11,9.59705855]
[1761335779014,4.60007917,193.12,193.11,4.80221207]
[1761335782823,4.60007917,193.12,193.11,2.66]
[1761335784723,4.60007917,193.12,193.11,7.45484648]
[1761335785123,2.15,193.18,193.11,7.45484648]
[1761335785319,2.15,193.16,193.13,3.35109658]
[1761335785518,4.66502274,193.15,193.14,2.66]
[1761335785719,4.66502274,193.15,193.14,6.01109658]
[1761335785916,2.15,193.19,193.15,2.66]
[1761335787219,2.15,193.19,193.15,6.01109658]
[1761335788724,2.15,193.19,193.16,2.66]
[1761335789019,4.82508943,193.23,193.16,2.66]
[1761335789220,2.15,193.22,193.16,2.66]
[1761335789621,2.15,193.22,193.15,3.35109658]
[1761335790623,2.15,193.21,193.13,6.01109658]
[1761335790819,2.15,193.2,193.13,6.01109658]
[1761335791027,2.15,193.19,193.13,3.35109658]
[1761335791527,2.15,193.19,193.1,10.80594306]
[1761335793025,2.15,193.19,193.1,15.46614306]
[1761335793227,4.82508943,193.19,193.1,15.46614306]
[1761335793421,2.15,193.18,193.1,15.46614306]
[1761335794220,2.15,193.18,193.1,3.35109658]
[1761335794521,2.15,193.16,193.09,181.14607521]
[1761335795219,2.15,193.15,193.07,2.79]
[1761335795420,2.15,193.11,193.05,3.35109658]
[1761335796021,4.82508943,193.11,193.04,8.87999]
[1761335796223,2.15,193.1,193.04,8.87999]
[1761335797824,4.59563767,193.09,193.04,8.87999]
[1761335798029,2.15,193.07,193.04,8.87999]
[1761335798229,4.59563767,193.06,193.04,8.87999]
[1761335798425,2.15,193.06,193.04,6.08999]
[1761335799232,2.15,193.11,193.04,6.08999]
[1761335799433,6.74074556,193.1,193.04,6.08999]
[1761335799631,2.15,193.08,193.04,8.91999]
[1761335799930,4.59074556,193.07,193.04,8.91999]
[1761335800127,2.15,193.08,193.04,8.91999]
[1761335800330,4.58873847,193.07,193.05,2.83]
[1761335800533,6.73873847,193.1,193.05,2.83]
[1761335800733,4.58873847,193.09,193.05,2.83]
[1761335801034,4.58873847,193.08,193.05,2.83]
[1761335801236,2.15,193.09,193.05,2.83]
[1761335801237,4.58873847,193.07,193.05,2.83]
[1761335801535,4.58873847,193.08,193.05,2.83]
[1761335801924,4.58873847,193.12,193.06,2.83]
[1761335802127,6.73873847,193.11,193.06,2.83]
[1761335802327,4.58873847,193.1,193.06,2.83]
[1761335802532,4.58873847,193.09,193.06,2.83]
[1761335802733,4.58873847,193.1,193.06,2.83]
[1761335802933,4.58873847,193.09,193.06,2.83]
[1761335803132,4.58873847,193.1,193.06,2.83]
[1761335803330,4.58873847,193.09,193.06,2.83]
[1761335803530,4.58873847,193.1,193.06,2.83]
[1761335803833,4.58873847,193.09,193.06,2.83]
[1761335804035,4.58873847,193.1,193.06,2.83]
[1761335806734,4.58873847,193.1,193.08,3.35109658]
[1761335806938,4.58873847,193.16,193.09,2.83]
[1761335807135,6.73873847,193.15,193.12,2.83]
[1761335807332,4.58873847,193.14,193.12,2.83]
[1761335807733,2.15,193.18,193.12,2.83]
[1761335807929,6.73873847,193.17,193.12,2.83]
[1761335808131,4.58873847,193.16,193.12,2.83]
[1761335808330,4.58873847,193.15,193.12,2.83]
[1761335808540,4.58873847,193.16,193.12,2.83]
[1761335808734,4.58873847,193.15,193.12,2.83]
[1761335808936,4.58873847,193.16,193.12,2.83]
[1761335809135,4.58873847,193.15,193.12,2.83]
[1761335809337,6.73873847,193.16,193.12,2.83]
[1761335809535,4.58873847,193.15,193.12,6.18109658]
[1761335809839,4.58873847,193.14,193.12,6.18109658]
[1761335810137,4.58873847,193.15,193.12,6.18109658]
[1761335810337,4.58873847,193.14,193.12,6.18109658]
[1761335810537,4.58873847,193.15,193.12,6.18109658]
[1761335811235,4.58873847,193.15,193.13,2.83]
[1761335811540,2.15,193.17,193.12,6.18109658]
[1761335811740,2.15,193.15,193.12,6.18109658]
[1761335811941,2.15,193.13,193.09,3.35109658]
[1761335812135,2.15,193.12,193.09,3.35109658]
[1761335812536,2.15,193.12,193.09,6.18109658]
[1761335815143,2.15,193.12,193.07,2.83]
[1761335820347,6.73873847,193.15,193.08,2.66]
[1761335820639,6.73873847,193.14,193.08,2.66]
[1761335820847,4.58873847,193.13,193.08,2.66]
[1761335821156,6.73873847,193.17,193.13,2.66]
[1761335821342,6.73873847,193.16,193.13,2.66]
[1761335821542,2.15,193.14,193.1,2.66]
[1761335821748,6.73873847,193.14,193.1,2.66]
[1761335822049,2.15,193.14,193.1,2.66]
[1761335822848,2.15,193.13,193.1,2.66]
[1761335823144,4.58873847,193.12,193.1,2.66]
[1761335823344,2.15,193.11,193.04,8.74999]
[1761335823643,6.73873847,193.1,193.04,8.74999]
[1761335823849,2.15,193.1,193.04,6.08999]
[1761335824044,2.15,193.1,193.05,2.66]
[1761335824250,4.58873847,193.1,193.05,2.66]
[1761335824550,2.15,193.09,193.05,2.66]
[1761335825946,6.73873847,193.09,193.05,2.66]
[1761335826151,2.15,193.09,193.05,2.66]
[1761335826749,2.15,193.08,193.04,6.08999]
[1761335826942,2.15,193.07,193.04,6.08999]
[1761335827144,2.15,193.06,193.04,6.08999]
[1761335830844,4.52529028,193.08,193.05,2.68]
[1761335831049,6.67529028,193.12,193.05,2.68]
[1761335831246,4.52529028,193.11,193.05,2.68]
[1761335831450,4.52529028,193.1,193.06,2.68]
[1761335831754,4.52529028,193.11,193.06,2.68]
[1761335831955,6.67529028,193.12,193.06,2.68]
[1761335832151,4.52529028,193.11,193.06,2.68]
[1761335832951,4.52529028,193.11,193.07,2.68]
[1761335833148,4.52529028,193.14,193.07,2.68]
[1761335833352,4.52529028,193.13,193.07,2.68]
[1761335833555,4.52529028,193.14,193.08,7.3406]
[1761335833854,6.67529028,193.13,193.08,2.68]
[1761335834056,2.15,193.16,193.08,2.68]
[1761335834355,2.15,193.16,193.04,9.44108658]
[1761335834356,4.52529028,193.15,193.09,2.68]
[1761335834555,4.52529028,193.14,193.09,2.68]
[1761335834752,4.52529028,193.13,193.09,2.68]
[1761335834957,4.52529028,193.15,193.09,2.68]
[1761335835154,4.52529028,193.14,193.09,2.68]
[1761335835354,4.52529028,193.13,193.09,2.68]
[1761335835556,4.52529028,193.15,193.09,2.68]
[1761335835744,4.52529028,193.14,193.09,2.68]
[1761335835951,4.52529028,193.13,193.09,7.3404]
[1761335836162,4.52529028,193.15,193.1,2.68]
[1761335836353,4.52529028,193.14,193.1,2.68]
[1761335836650,6.9732786,193.21,193.11,2.68]
[1761335836855,4.52847834,193.2,193.11,2.68]
[1761335837053,4.52847834,193.19,193.11,2.68]
[1761335837359,4.52847834,193.18,193.11,2.68]
[1761335837560,4.52847834,193.17,193.11,2.68]
[1761335837762,4.52740907,193.2,193.11,2.68]
[1761335838059,4.52740907,193.19,193.12,2.68]
[1761335838253,2.15,193.21,193.12,2.68]
[1761335838254,4.52740907,193.18,193.12,2.68]
[1761335838455,4.52740907,193.17,193.12,2.68]
[1761335838756,4.52740907,193.2,193.12,2.68]
[1761335839063,4.52740907,193.19,193.12,2.68]
[1761335839263,4.52740907,193.18,193.12,2.68]
[1761335839455,4.52740907,193.17,193.12,2.68]
[1761335839762,4.52740907,193.2,193.12,2.68]
[1761335839959,4.52740907,193.19,193.12,2.68]
[1761335840257,4.52740907,193.18,193.12,2.68]
[1761335840450,4.52740907,193.17,193.12,2.68]
[1761335840657,6.67740907,193.2,193.12,2.68]
[1761335840855,4.52740907,193.19,193.12,2.68]
[1761335841060,4.52740907,193.18,193.12,2.68]
[1761335841260,4.52740907,193.17,193.12,2.68]
[1761335841460,4.52740907,193.16,193.12,2.68]
[1761335841764,4.52740907,193.19,193.12,2.68]
[1761335841961,4.52740907,193.18,193.12,2.68]
[1761335842166,4.52740907,193.17,193.12,2.68]
[1761335842352,4.52740907,193.19,193.12,2.68]
[1761335842552,4.52740907,193.18,193.12,2.68]
[1761335842766,4.52740907,193.17,193.14,2.68]
[1761335842956,6.67740907,193.19,193.14,2.68]
[1761335843160,6.67740907,193.18,193.14,2.68]
[1761335843462,4.52740907,193.17,193.14,2.68]
[1761335844563,4.52740907,193.16,193.14,2.68]
[1761335844761,4.52740907,193.15,193.14,2.68]
[1761335850262,65.08387785,193.22,193.14,3.72]
[1761335850263,2.15,193.22,193.14,3.72]
[1761335850464,2.15,193.2,193.17,2.68]
[1761335850664,4.82201768,193.19,193.17,2.68]
[1761335850970,4.82201768,193.18,193.17,2.68]
[1761335853968,4.82201768,193.18,193.12,183.89039699]
[1761335853969,6.97201768,193.18,193.12,183.89039699]
[1761335854170,2.15,193.14,193.12,183.89039699]
[1761335854370,4.82019731,193.13,193.12,183.89039699]
[1761335854673,6.97019731,193.13,193.08,2.68]
[1761335854860,4.82019731,193.12,193.08,2.68]
[1761335855061,2.15,193.13,193.08,2.68]
[1761335855264,4.82028145,193.12,193.09,2.68]
[1761335855464,2.14387785,193.15,193.09,2.68]
[1761335855666,6.97101552,193.14,193.09,2.68]
[1761335855970,6.97101552,193.13,193.09,2.68]
[1761335856164,4.82101552,193.12,193.09,2.68]
[1761335856368,2.15,193.13,193.09,2.68]
[1761335856568,4.82102581,193.12,193.09,2.68]
[1761335856772,2.15,193.13,193.09,2.68]
[1761335856977,4.82102635,193.12,193.09,2.68]
[1761335857174,2.15,193.13,193.09,2.68]
[1761335857468,4.82107743,193.12,193.09,2.68]
[1761335857674,2.15,193.13,193.09,2.68]
[1761335857869,4.82107743,193.12,193.09,2.68]
[1761335858174,2.15,193.13,193.09,2.68]
[1761335858375,4.82090735,193.12,193.09,2.68]
[1761335858577,4.82104554,193.11,193.09,2.68]
[1761335858771,2.15,193.13,193.09,2.68]
[1761335858973,4.82104554,193.12,193.09,2.68]
[1761335859272,4.82104554,193.11,193.09,2.68]
[1761335859474,2.15,193.13,193.09,2.68]
[1761335859678,4.82131039,193.12,193.09,2.68]
[1761335859973,4.82131039,193.11,193.09,2.68]
[1761335860175,2.15,193.13,193.09,2.68]
[1761335860377,4.82136023,193.12,193.09,2.68]
[1761335860569,4.82136023,193.11,193.09,2.68]
[1761335860770,2.15,193.13,193.09,2.68]
[1761335861071,4.8212914,193.12,193.09,2.68]
[1761335861274,4.8212914,193.11,193.09,2.68]
[1761335861469,2.15,193.13,193.09,2.68]
[1761335861776,4.82137015,193.12,193.09,2.68]
[1761335861974,4.82137015,193.11,193.09,2.68]
[1761335862275,2.15,193.13,193.09,2.68]
[1761335862475,4.82143531,193.12,193.09,2.68]
[1761335862671,4.82143531,193.11,193.09,2.68]
[1761335862879,2.15,193.13,193.09,2.68]
[1761335863176,4.82132633,193.12,193.09,2.68]
[1761335863475,4.82132633,193.11,193.09,2.68]
[1761335863677,2.15,193.13,193.09,2.68]
[1761335863971,2.15,193.11,193.06,7.2912]
[1761335864174,4.82129031,193.1,193.07,2.63]
[1761335864377,2.15,193.11,193.07,2.63]
[1761335864676,4.82167654,193.1,193.07,2.63]
[1761335864877,2.15,193.11,193.07,2.63]
[1761335865079,4.821676,193.1,193.07,2.63]
[1761335865277,2.15,193.11,193.07,2.63]
[1761335865477,4.82194984,193.1,193.07,2.63]
[1761335865676,4.29387785,193.13,193.07,7.2908]
[1761335865877,6.97188046,193.12,193.08,2.63]
[1761335866074,6.97188046,193.11,193.08,2.63]
[1761335866275,4.82188046,193.1,193.08,2.63]
[1761335866577,2.15,193.11,193.08,2.63]
[1761335866777,4.82187152,193.1,193.08,2.63]
[1761335866976,2.15,193.11,193.08,2.63]
[1761335867176,4.82187115,193.1,193.08,2.63]
[1761335867376,2.15,193.11,193.08,2.63]
[1761335867578,4.82186078,193.1,193.08,2.63]
[1761335867778,2.15,193.11,193.08,2.63]
[1761335867979,4.82186024,193.1,193.08,2.63]
[1761335868178,2.15,193.11,193.08,2.63]
[1761335868378,4.8219648,193.1,193.08,2.63]
[1761335868574,2.15,193.11,193.08,2.63]
[1761335868776,2.15,193.09,193.04,6.08999]
[1761335868982,2.15,193.07,193.04,6.08999]
[1761335869179,4.82303245,193.06,193.04,6.08999]
[1761335869380,2.15,193.06,193.04,6.08999]
[1761335869884,4.82354634,193.05,193.04,6.08999]
[1761335870585,2.15,193.06,193.04,6.08999]
[1761335872885,2.15,193.09,193.05,2.63]
[1761335873088,4.78207179,193.08,193.05,2.63]
[1761335873383,4.78207179,193.07,193.05,2.63]
[1761335873588,2.15,193.09,193.05,2.63]
[1761335873784,6.93258141,193.08,193.05,2.63]
[1761335873989,4.78258141,193.07,193.05,2.63]
[1761335874190,2.15,193.08,193.05,2.63]
[1761335874389,4.78337365,193.07,193.05,2.63]
[1761335874685,2.15,193.08,193.05,2.63]
[1761335875188,4.70719421,193.07,193.05,2.63]
[1761335875390,2.15,193.08,193.05,2.63]
[1761335875590,4.70719421,193.07,193.05,2.63]
[1761335875785,2.15,193.08,193.05,2.63]
[1761335875993,4.70719421,193.07,193.05,2.63]
[1761335876193,2.15,193.11,193.05,2.63]
[1761335876488,4.7071865,193.1,193.05,2.63]
[1761335876690,2.15,193.11,193.05,2.63]
[1761335876691,4.7071865,193.09,193.05,2.63]
[1761335876878,2.15,193.11,193.05,2.63]
[1761335877083,6.85690528,193.1,193.06,2.76]
[1761335877279,4.70690528,193.09,193.06,2.76]
[1761335877484,2.15,193.1,193.06,2.76]
[1761335877793,4.70690519,193.09,193.06,2.76]
[1761335878089,2.15,193.1,193.06,2.76]
[1761335878290,4.70663209,193.09,193.06,2.76]
[1761335878492,2.15,193.1,193.06,2.76]
[1761335878688,4.70663049,193.09,193.06,2.76]
[1761335878885,2.15,193.1,193.06,2.76]
[1761335879082,4.70663103,193.09,193.06,2.76]
[1761335879284,2.15,193.1,193.06,2.76]
[1761335879481,6.85635878,193.09,193.06,2.76]
[1761335879792,2.15,193.09,193.06,2.76]
[1761335880388,4.70607521,193.08,193.05,4.6613]
[1761335880592,2.15,193.09,193.06,2.76]
[1761335884894,2.15,193.07,193.04,6.08999]
[1761335885088,2.15,193.07,193.04,8.84999]
[1761335885686,4.70600467,193.08,193.05,2.76]
[1761335885990,2.15,193.1,193.05,2.76]
[1761335886193,6.85586292,193.09,193.05,2.76]
[1761335886392,4.70586292,193.08,193.05,2.76]
[1761335886591,2.15,193.09,193.05,2.76]
[1761335886794,6.85593105,193.08,193.05,2.76]
[1761335886990,2.15,193.08,193.05,2.76]
[1761335887993,2.15,193.08,193.04,6.08999]
[1761335888187,2.15,193.06,193.04,6.08999]
[1761335888586,2.15,193.05,193.04,6.08999]
[1761335892292,2.15,193.05,192.98,295.18463928]
[1761335892293,6.80864919,193.05,192.98,295.18463928]
[1761335892592,2.15,193.03,192.98,293.20153928]
[1761335892791,2.15,193.01,192.98,290.52153928]
[1761335893902,2.15,193.0,192.98,290.52153928]
[1761335894497,6.81407583,193.0,192.91,4.82387785]
[1761335894696,2.14387785,193.01,192.92,2.68]
[1761335894697,6.81407583,192.99,192.92,2.68]
[1761335894903,4.66407583,192.98,192.92,2.68]
[1761335895400,4.66331009,192.98,192.92,7.3445]
[1761335895601,2.15,192.98,192.92,7.3445]
[1761335895996,2.15,192.98,192.89,62.94]
[1761335895997,2.15,192.96,192.89,2.68]